Cogmind - Beta 11.1 @@@ ROGUE MODE // 2022.06.10 @ 13:10:50 // Winter2019/RPGLIKE Player: Exp. Geonium Core Result: Destroyed by S-27 Virus with Autogun Performance ------------- Evolutions (3) 1500 Regions Visited (8) 1600 Robots Destroyed (52) 260 Value Destroyed (1571) 1571 Prototype IDs (24) 480 Alien Tech Used (0) 0 Bonus (453) 453 TOTAL SCORE: 5864 Bonus ------- High Alert Combat Kills 153 Aligned with FarCom 300 Cogmind --------- Core Integrity 0/1000 Matter 358/500 Energy 985/1600 System Corruption 0% Temperature Hot (218) Movement Flying (32) Location -7/Factory Parts ------- > --- POWER (1) -------- (None) > --- PROPULSION (2) --- VTOL Module VTOL Module > --- UTILITY (1) ------ Superbattery > --- WEAPON (2) ------- EM Pulse Cannon Improved Grenade Launcher > --- INVENTORY (1) ---- Improved Grenade Launcher Peak State ------------ > --- POWER ------------ Light Ion Engine > --- PROPULSION ------- VTOL Module VTOL Module > --- UTILITY ---------- Superbattery > --- WEAPON ----------- EM Pulse Cannon Improved Grenade Launcher > --- INVENTORY -------- (None) [Rating: 21] Favorites ----------- Power Light Ion Engine Engine Light Ion Engine Propulsion VTOL Module Leg Aluminum Leg Flight Unit VTOL Module Utility Structural Scanner Device Structural Scanner Storage Superbattery Weapon Rocket Launcher Energy Gun EM Pulse Gun Energy Cannon EM Pulse Cannon Launcher Rocket Launcher Build | -11 -10 -10 -9 -9 -9 -8 -8 -7 ------- Run | Scr Mat Min Mat Min Exi Min Mat Fac Slots Evolved 2 | 2 . . . . . . . . Power . | . . . . . . . . . Propulsion 1 | 1 . . . . . . . . Utility . | . . . . . . . . . Weapon 1 | 1 . . . . . . . . Parts Attached 13 | 1 6 . . . . . 2 4 Power . | . . . . . . . . . Engine . | . . . . . . . . . Core . | . . . . . . . . . Reactor . | . . . . . . . . . Propulsion 3 | 1 2 . . . . . . . Treads . | . . . . . . . . . Leg 1 | 1 . . . . . . . . Wheel . | . . . . . . . . . Hover . | . . . . . . . . . Flight 2 | . 2 . . . . . . . Utility 2 | . 1 . . . . . . 1 Device 1 | . 1 . . . . . . . Storage 1 | . . . . . . . . 1 Processor . | . . . . . . . . . Hackware . | . . . . . . . . . Protection . | . . . . . . . . . Artifact . | . . . . . . . . . Weapon 8 | . 3 . . . . . 2 3 Energy Gun 1 | . . . . . . . . 1 Energy Cannon 1 | . . . . . . . . 1 Ballistic Gun . | . . . . . . . . . Ballistic Cannon . | . . . . . . . . . Launcher 6 | . 3 . . . . . 2 1 Special Weapon . | . . . . . . . . . Impact Weapon . | . . . . . . . . . Slashing Weapon . | . . . . . . . . . Piercing Weapon . | . . . . . . . . . Special Melee Weapon . | . . . . . . . . . Unidentified Prototypes 1 | . . . . . . . . 1 Parts Lost 1 | . . . . . . . . 1 Power 1 | . . . . . . . . 1 Propulsion . | . . . . . . . . . Utility . | . . . . . . . . . Weapon . | . . . . . . . . . Highest Loss Streak 1 | . . . . . . . . 1 To Critical Strikes . | . . . . . . . . . Average Slot Usage (%) 98 | . 93 100 100 100 100 100 100 100 Engine 16 | . 16 16 16 16 16 16 16 16 Leg 6 | . 24 . . . . . . . Flight 26 | . 8 33 33 33 33 33 33 33 Device 13 | . 11 16 16 16 16 16 16 4 Storage 1 | . . . . . . . . 11 Energy Gun 3 | . 12 . . . . . . . Energy Cannon 1 | . . . . . . . . 11 Launcher 27 | . 18 33 33 33 33 33 33 21 Naked Turns . | . . . . . . . . . Heaviest Build 19 | 5 12 12 12 12 12 12 16 19 Greatest Support 25 | 25 25 13 13 13 13 13 18 23 Greatest Overweight (x) 1 | . 1 . . . . . . . Average Overweight (x) . | . . . . . . . . . Largest Inventory Capacity 1 | . 1 1 1 1 1 1 1 1 Average Capacity . | . . 1 1 1 1 1 1 1 Most Carried 1 | . 1 1 1 . 1 1 1 1 Average Carried . | . . . . . . 1 1 . Final Capacity 1 | . 1 1 1 1 1 1 1 1 Final Carried 1 | . 1 . . . 1 1 1 1 Class Distribution -------------------- 69% | Sprinter 19% | Mutant 11% | Hacker-Sprinter Dominant Class ---------------- Mutant | -10/Materials Sprinter | -10/Mines Sprinter | -9/Materials Sprinter | -9/Mines Sprinter | -9/Exiles Sprinter | -8/Mines Sprinter | -8/Materials Hacker-Sprinter | -7/Factory Resources | -11 -10 -10 -9 -9 -9 -8 -8 -7 ----------- Run | Scr Mat Min Mat Min Exi Min Mat Fac Matter Collected 1298 | 200 248 66 109 . 276 . 399 . Remotely . | . . . . . . . . . Salvage Created 1205 | . 473 92 116 13 . . 331 180 Parts 65 | . 17 7 16 3 . . 14 8 Haulers Intercepted 1 | . 1 . . . . . . . Recyclers Shooed . | . . . . . . . . . Parts Field Recycled . | . . . . . . . . . Retrieved Matter . | . . . . . . . . . Parts Self-Destructed . | . . . . . . . . . Prevented . | . . . . . . . . . Kills | -11 -10 -10 -9 -9 -9 -8 -8 -7 ------- Run | Scr Mat Min Mat Min Exi Min Mat Fac Combat Hostiles Destroyed 40 | . 9 5 6 4 . . 12 4 Guns 1 | . 1 . . . . . . . Cannons 4 | . . . . . . . . 4 AOE 35 | . 8 5 6 4 . . 12 . Classes Destroyed 8 | . 4 1 2 . . . 1 . Worker 2 | . . . 2 . . . . . Hauler 1 | . 1 . . . . . . . Recycler 4 | . 2 . 1 . . . 1 . Operator 1 | . . . 1 . . . . . Watcher 4 | . 1 . 2 . . . 1 . Swarmer 13 | . . 3 . 4 . . 4 2 Grunt 26 | . 9 2 6 . . . 7 2 Sentry 1 | . . . . . . . 1 . Best Kill Streak 10 | . 5 3 5 4 . . 10 4 Combat Bots Only 5 | . 3 3 3 4 . . 5 4 Max Kills in Single Turn 3 | . 3 3 2 2 . . 3 1 Gunslinging . | . . . . . . . . . Exploded 3 | . 1 3 2 2 . . 3 . Melee . | . . . . . . . . . Uniques/NPCs Destroyed . | . . . . . . . . . Combat | -11 -10 -10 -9 -9 -9 -8 -8 -7 -------- Run | Scr Mat Min Mat Min Exi Min Mat Fac Damage Taken 1549 | . 234 . 272 170 . . 558 315 Core 1277 | . 190 . 226 147 . . 456 258 Absorbed by Shields . | . . . . . . . . . Redirected to Core 926 | . 135 . 161 81 . . 357 192 Core Remaining (%) 58 | 100 . 91 . . . 40 4 . Volleys Fired 92 | . 25 3 19 3 2 . 17 23 Largest 2 | . 2 2 2 1 1 . 2 1 Hottest 72 | . 66 66 66 33 33 . 72 63 Shots Fired 113 | . 27 6 30 3 2 . 22 23 Gun 10 | . 10 . . . . . . . Cannon 23 | . . . . . . . . 23 Launcher 80 | . 17 6 30 3 2 . 22 . Special . | . . . . . . . . . Kinetic . | . . . . . . . . . Thermal . | . . . . . . . . . Explosive 80 | . 17 6 30 3 2 . 22 . Electromagnetic 33 | . 10 . . . . . . 23 Robot Hit Streak 6 | . 4 . 5 . . . 3 6 Robot Miss Streak 3 | . 1 . 3 2 . . 3 2 Penetration Max . | . . . . . . . . . Secondary Targets . | . . . . . . . . . Shots Hit Robots 39 | . 12 . 8 . . . 3 16 Core Hits 82 | . 23 5 18 3 . . 27 6 Critical Kills . | . . . . . . . . . Critical Parts Destroyed . | . . . . . . . . . Critical Strikes . | . . . . . . . . . Melee Attacks . | . . . . . . . . . Impact . | . . . . . . . . . Slashing . | . . . . . . . . . Piercing . | . . . . . . . . . Sneak Attacks . | . . . . . . . . . Combat Hostiles . | . . . . . . . . . Follow-up Attacks . | . . . . . . . . . Damage Inflicted 5115 | . 975 273 1179 356 . . 1911 421 Guns 117 | . 117 . . . . . . . Cannons 421 | . . . . . . . . 421 Explosions 4577 | . 858 273 1179 356 . . 1911 . Melee . | . . . . . . . . . Ramming . | . . . . . . . . . Kinetic . | . . . . . . . . . Thermal 225 | . 158 . 67 . . . . . Explosive 4352 | . 700 273 1112 356 . . 1911 . Electromagnetic 538 | . 117 . . . . . . 421 Impact . | . . . . . . . . . Slashing . | . . . . . . . . . Piercing . | . . . . . . . . . Highest Corruption . | . . . . . . . . . Average Corruption . | . . . . . . . . . Corruption Purged . | . . . . . . . . . Corruption Blocked . | . . . . . . . . . Overload Shots . | . . . . . . . . . Overflow Damage 164 | . . 36 49 43 . . 30 6 Projectiles 6 | . . . . . . . . 6 Explosions 158 | . . 36 49 43 . . 30 . Melee . | . . . . . . . . . Knockbacks . | . . . . . . . . . Impact . | . . . . . . . . . Kinetic . | . . . . . . . . . Secondary . | . . . . . . . . . Self-Inflicted Damage 260 | . . . 77 134 . . 49 . Shots 9 | . . . 3 3 . . 3 . Rammed . | . . . . . . . . . Targets Rammed . | . . . . . . . . . Kicked . | . . . . . . . . . Crushed . | . . . . . . . . . Highest Temperature 337 | . 63 16 99 . . . 154 337 Average Temperature 77 | . 19 8 32 . . . 47 163 Received Heat Transfer 606 | . 150 . 114 . . . 234 108 Effects 1 | . . . . . . . . 1 Energy Bleed 1 | . . . . . . . . 1 Siege Activations . | . . . . . . . . . Robots Corrupted . | . . . . . . . . . Combat Hostiles . | . . . . . . . . . Parts Fried 1 | . . . . . . . . 1 Impact Corruptions . | . . . . . . . . . Robots Melted . | . . . . . . . . . Combat Hostiles . | . . . . . . . . . Parts Melted . | . . . . . . . . . Heat Transferred 200 | . 150 . 50 . . . . . Parts Sabotaged . | . . . . . . . . . Parts Stolen . | . . . . . . . . . Parts Stripped . | . . . . . . . . . Power Chain Reactions 3 | . 3 . . . . . . . Missiles Intercepted . | . . . . . . . . . Alert | -11 -10 -10 -9 -9 -9 -8 -8 -7 ------- Run | Scr Mat Min Mat Min Exi Min Mat Fac Peak Influence 1237 | . 601 471 1237 626 . . 696 467 Initial 482 | . . 234 183 482 . . . 316 Average 384 | . 259 318 748 620 . . 267 375 Maximum Alert Level 4 | . 2 2 4 2 . . 2 2 Low Security (%) 23 | 100 33 . 4 . . 100 45 . Level 1 39 | . 48 76 6 . . . 23 75 Level 2 26 | . 17 23 34 100 . . 30 24 Level 3 7 | . . . 37 . . . . . Level 4 3 | . . . 16 . . . . . Level 5 . | . . . . . . . . . High Security . | . . . . . . . . . Max Security . | . . . . . . . . . Squads Dispatched 6 | . 2 . . . . . 3 1 Investigation 2 | . 1 . . . . . . 1 Extermination . | . . . . . . . . . Reinforcement 3 | . 1 . . . . . 2 . Assault . | . . . . . . . . . Garrison 1 | . . . . . . . 1 . Intercept . | . . . . . . . . . Searches Triggered . | . . . . . . . . . Construction Impeded 1 | . . . . . . . 1 . Haulers Reinforced . | . . . . . . . . . Active Scanning Responses . | . . . . . . . . . Cargo Convoy Interrupts . | . . . . . . . . . Stealth | -11 -10 -10 -9 -9 -9 -8 -8 -7 --------- Run | Scr Mat Min Mat Min Exi Min Mat Fac Distress Signals 3 | . . . 1 . . . 2 . Communications Jammed . | . . . . . . . . . Distress Signals . | . . . . . . . . . Times Spotted 61 | . 12 3 12 2 . . 25 7 Peak Tracking Total 11 | . 3 2 7 2 9 . 11 3 Tactical Retreats 7 | . . . 3 . . . 3 1 Traps | -11 -10 -10 -9 -9 -9 -8 -8 -7 ------- Run | Scr Mat Min Mat Min Exi Min Mat Fac Traps Triggered . | . . . . . . . . . Indirectly . | . . . . . . . . . Trap Hack Attempts . | . . . . . . . . . Triggered . | . . . . . . . . . Disarmed . | . . . . . . . . . Reprogrammed . | . . . . . . . . . Reused . | . . . . . . . . . Traps Extracted . | . . . . . . . . . Installed . | . . . . . . . . . Triggered . | . . . . . . . . . Machines | -11 -10 -10 -9 -9 -9 -8 -8 -7 ---------- Run | Scr Mat Min Mat Min Exi Min Mat Fac Machines Disabled 19 | . 1 . 10 . 3 . 5 . Max in Single Turn 2 | . 1 . 2 . 2 . 2 . Machines Sabotaged . | . . . . . . . . . Garrisons Compromised . | . . . . . . . . . Overloaded Fab Kills . | . . . . . . . . . Hacking | -11 -10 -10 -9 -9 -9 -8 -8 -7 --------- Run | Scr Mat Min Mat Min Exi Min Mat Fac Machines Accessed 5 | . 2 . 1 . 1 . . 1 Terminals 4 | . 2 . 1 . . . . 1 Fabricators . | . . . . . . . . . Repair Stations . | . . . . . . . . . Recycling Units . | . . . . . . . . . Scanalyzers . | . . . . . . . . . Garrison Access . | . . . . . . . . . Total Hacks 12 | . 7 . 2 . 1 . . 2 Successful 5 | . 1 . 2 . 1 . . 1 Failed 6 | . 5 . . . . . . 1 Catastrophic 3 | . 2 . . . . . . 1 Database Lockouts 1 | . 1 . . . . . . . Manual 5 | . 4 . . . 1 . . . Terminals 11 | . 7 . 2 . . . . 2 Fabricators . | . . . . . . . . . Repair Stations . | . . . . . . . . . Recycling Units . | . . . . . . . . . Scanalyzers . | . . . . . . . . . Garrison Access . | . . . . . . . . . Terminal Hacks 5 | . 1 . 2 . 1 . . 1 Robot Analysis 2 | . 1 . 1 . . . . . Branch Access Points 1 | . . . 1 . . . . . Machine Index 1 | . . . . . . . . 1 EX-Prototype ID Bank 1 | . . . . . 1 . . . Fabricator Hacks . | . . . . . . . . . Repair Station Hacks . | . . . . . . . . . Recycling Unit Hacks . | . . . . . . . . . Scanalyzer . | . . . . . . . . . Garrison Access Hacks . | . . . . . . . . . Unauthorized Hacks . | . . . . . . . . . Terminals . | . . . . . . . . . Fabricators . | . . . . . . . . . Repair Stations . | . . . . . . . . . Recycling Units . | . . . . . . . . . Scanalyzers . | . . . . . . . . . Garrison Access . | . . . . . . . . . Data Cores Recovered 1 | . . . 1 . . . . . Used . | . . . . . . . . . Hacking Detections 3 | . 2 . . . . . . 1 Full Trace Events 3 | . 2 . . . . . . 1 Feedback Events . | . . . . . . . . . Feedback Blocked . | . . . . . . . . . Robot Schematics Acquired . | . . . . . . . . . Robots Built . | . . . . . . . . . Authchips . | . . . . . . . . . Time . | . . . . . . . . . Total Robot Build Rating . | . . . . . . . . . Part Schematics Acquired . | . . . . . . . . . Parts Built . | . . . . . . . . . Authchips . | . . . . . . . . . Time . | . . . . . . . . . Total Part Build Rating . | . . . . . . . . . Parts Repaired . | . . . . . . . . . Time . | . . . . . . . . . Parts Recycled . | . . . . . . . . . Recycled Matter . | . . . . . . . . . Retrieved Matter . | . . . . . . . . . Retrieved Components . | . . . . . . . . . Parts Scanalyzed . | . . . . . . . . . Part Schematics Acquired . | . . . . . . . . . Parts Damaged . | . . . . . . . . . Bothacking | -11 -10 -10 -9 -9 -9 -8 -8 -7 ------------ Run | Scr Mat Min Mat Min Exi Min Mat Fac Used RIF Installer . | . . . . . . . . . Robots Hacked . | . . . . . . . . . Non-combat . | . . . . . . . . . Combat . | . . . . . . . . . Robot Hacks Applied . | . . . . . . . . . Relay Couplers Released . | . . . . . . . . . Fabnet Peak Effective % . | . . . . . . . . . Robots Rewired . | . . . . . . . . . Allies Hacked . | . . . . . . . . . Hacks Repelled . | . . . . . . . . . Allies | -11 -10 -10 -9 -9 -9 -8 -8 -7 -------- Run | Scr Mat Min Mat Min Exi Min Mat Fac Total Allies . | . . . . . . . . . Largest Group . | . . . . . . . . . Highest-Rated Group . | . . . . . . . . . Highest-Rated Ally . | . . . . . . . . . Total Orders . | . . . . . . . . . Ally Attacks . | . . . . . . . . . Total Damage . | . . . . . . . . . Kills . | . . . . . . . . . Allies Corrupted . | . . . . . . . . . Allies Melted . | . . . . . . . . . Intel | -11 -10 -10 -9 -9 -9 -8 -8 -7 ------- Run | Scr Mat Min Mat Min Exi Min Mat Fac Robot Analysis Total 2 | . 1 . 1 . . . . . Derelict Logs Recovered 3 | . . 2 . 1 . . . . Drone Launches . | . . . . . . . . . Drone Recoveries . | . . . . . . . . . Exploration | -11 -10 -10 -9 -9 -9 -8 -8 -7 ------------- Run | Scr Mat Min Mat Min Exi Min Mat Fac Turns Passed 1088 | 6 298 117 208 29 94 38 164 134 Spaces Moved 2102 | 4 311 325 459 72 279 105 349 198 Core . | . . . . . . . . . Treads . | . . . . . . . . . Legs 146 | 4 142 . . . . . . . Wheels . | . . . . . . . . . Hover . | . . . . . . . . . Flight 1956 | . 169 325 459 72 279 105 349 198 Fastest Speed 32 | 120 32 32 32 32 32 32 32 32 Average Speed 38 | 120 72 32 32 32 32 32 32 32 Slowest Speed 120 | 120 120 32 32 32 32 32 32 32 Overloaded Moves . | . . . . . . . . . Propulsion Burnouts . | . . . . . . . . . Robots Hopped 17 | . 1 7 1 . . 3 1 4 Cave-ins Triggered . | . . . . . . . . . Exploration Rate (%) 44 | 2 82 88 54 18 63 34 54 4 Regions Visited 8 Branch Regions 4 Pre-discovered Areas . | . . . . . . . . . Known Exits Taken 2 | . . . 1 . . . 1 . Unknown Exits Taken 6 | 1 1 1 . 1 1 1 . . Scrap Searched 2 | . . 1 . 1 . . . . Spaces Dug 79 | . 8 21 10 . . . 40 . Terrain Destroyed 589 | . 120 56 251 28 10 . 124 . Melee . | . . . . . . . . . Projectile . | . . . . . . . . . AOE 589 | . 120 56 251 28 10 . 124 . Terrain Rammed . | . . . . . . . . . Walls Destroyed . | . . . . . . . . . Machines Disabled . | . . . . . . . . . Actions | -11 -10 -10 -9 -9 -9 -8 -8 -7 --------- Run | Scr Mat Min Mat Min Exi Min Mat Fac Total 2249 | 4 354 324 488 74 281 105 377 242 Wait 36 | . 4 . 6 . . 4 9 13 Move 2062 | 3 308 311 456 71 278 98 346 191 Hop 15 | . 1 6 1 . . 3 1 3 Pick Up 4 | . 1 . 1 . 1 . . 1 Fast Attach 12 | 1 6 . . . . . 2 3 Attach 1 | . . . . . . . . 1 Detach . | . . . . . . . . . Swap . | . . . . . . . . . Drop 12 | . 4 1 1 . . . 2 4 Fire 92 | . 25 3 19 3 2 . 17 23 Melee . | . . . . . . . . . Ram . | . . . . . . . . . Kick . | . . . . . . . . . Crush . | . . . . . . . . . Escape Stasis . | . . . . . . . . . Rewire . | . . . . . . . . . Trap . | . . . . . . . . . Miscellaneous 15 | . 5 3 4 . . . . 3 Route ------- -11/Scrapyard -10/Materials (discovered 3 exits: *Mat x2 / [*Min]) -10/Mines (discovered 2 exits: *Mat x2) -9/Materials (discovered 4 exits: *Mat x2 / *Min / Sto) -9/Mines -9/Exiles -8/Mines -8/Materials -7/Factory (discovered 1 exit: [*Fac]) History --------- Turn | Location | Event 1 | -11/Scrapyard | Upgraded with Propulsion slot (x1) 1 | -11/Scrapyard | Upgraded with Weapon slot (x1) 1 | -11/Scrapyard | Discovered new exit (range 1) 7 | -11/Scrapyard | Entered Materials 112 | -10/Materials | Discovered new exit (range 14) 237 | -10/Materials | Discovered new exit (range 5) 251 | -10/Materials | Central database locked down 299 | -10/Materials | Discovered new exit (range 16) 305 | -10/Materials | Entered Mines 307 | -10/Mines | Reached level 2 319 | -10/Mines | Met a Derelict bent on vengeance 325 | -10/Mines | A weapon hastily lodged in a ceiling crevice suddenly fell to the ground 357 | -10/Mines | Learned location of 1 exit from Materials 393 | -10/Mines | Learned location of 1 exit from Materials 393 | -10/Mines | Discovered new exit (range 10) 404 | -10/Mines | Discovered new exit (range 5) 416 | -10/Mines | Received a Rocket Launcher from a helpful Derelict 422 | -10/Mines | Entered Materials 423 | -9/Materials | Identified exit to Storage 423 | -9/Materials | Identified exit to Mines 424 | -9/Materials | Reached level 3 483 | -9/Materials | Discovered new exit (range 15) 497 | -9/Materials | Reached level 4 516 | -9/Materials | Build established: Sprinter 522 | -9/Materials | Discovered new exit (range 9) 630 | -9/Materials | Entered Mines 632 | -9/Mines | Reached level 5 633 | -9/Mines | Core integrity fell below 50% 658 | -9/Mines | Deemed a non-threat by the Exiles lab entrance 658 | -9/Mines | Discovered new exit (range 5) 659 | -9/Mines | Entered Exiles 668 | -9/Exiles | Met 8R-AWN 673 | -9/Exiles | Met EX-HEX 681 | -9/Exiles | Met EX-BIN 685 | -9/Exiles | Aligned with FarCom system 686 | -9/Exiles | Given EX-Vault access code 695 | -9/Exiles | Opened EX-Vault 698 | -9/Exiles | Found Superbattery 706 | -9/Exiles | Warned to stay clear of 0b10 Research branches 715 | -9/Exiles | Met EX-DEC 733 | -9/Exiles | Attacked by the Exiles 739 | -9/Exiles | Discovered new exit (range 10) 753 | -9/Exiles | Left Exiles lab with Superbattery 753 | -9/Exiles | Entered Mines 784 | -8/Mines | Discovered new exit (range 8) 791 | -8/Mines | Entered Materials 792 | -8/Materials | Identified exit to Factory 792 | -8/Materials | Core integrity fell below 50% 793 | -8/Materials | Reached level 6 863 | -8/Materials | Reached level 7 872 | -8/Materials | Core integrity fell below 20% 943 | -8/Materials | Reached level 8 955 | -8/Materials | Entered Factory 956 | -7/Factory | Core integrity fell below 50% 956 | -7/Factory | Core integrity fell below 20% 957 | -7/Factory | Reached level 9 1074 | -7/Factory | Discovered new exit (range 16) 1089 | -7/Factory | Destroyed by S-27 Virus with Autogun Last Messages --------------- 00997_ Dropped Structural Scanner. 00998_ Upgraded: Mass Support (+5) 00999_ Acquired Imp. Grenade Launcher. 01003_ Upgraded: Core Integrity (+50) 01009_ ALERT: All DSF locations entering lockdown mode. 01012_ Destroyed Particle Gun. 01035_ Upgraded: Core Integrity (+50) 01039_ Aluminum Leg fried. 01039_ G-47 Trooper destroyed. 01042_ K-01 Serf collects debris. 01046_ Critical hit (Burn: +37). 01050_ Door malfunctions. 01056_ Upgraded: Core Integrity (+50) 01056_ G-47 Trooper destroyed. 01062_ S-27 Virus destroyed. 01065_ Overheating: Energy bleed (-186). 01067_ Used Protomatter to restore core integrity (+57, depleted) 01074_ EXIT=FOUND 01079_ S-27 Virus destroyed. 01086_ Lgt. Ion Engine destroyed. Map ----- +----------------------------------------------------+ | ???## ##/######## ######## | | ???## # % % ## ##?????? | | ???## # ## ##?????? | | ???## # ########?????? | | ???## # ! ########?????? | | ???## ###########???????????? | | ???## ### ###???????????? | | ???## ##????????????? | | ???## ##????????????? | | ???## [ * ! ##????????????? | | ???## ##### ##????????????? | | ???############# ###????????????? | | ??# # ###????????????? | | ??# / ##?????????????? | | ??# # ##?????????????? | | ??# # ##?????????????? | | ??# ! # ##?????????????? | | ??# # [ ##?????????????? | | ??# # % ##?????????????? | | ??# # ! ##?????????????? | | ??# # ##?????????????? | | ??? # ##?????????????? | | ??? % # ##?????????????? | | ???? %[ # ##?????????????? | | ????#######s#### ##?????????????? | | ??????# @*= # ##?????????????? | | ??????# # ##?????????????? | | ??????# # ##?????????????? | | ??????# + #??????????????? | | ??????# # #??????????????? | | ??????# # #??????????????? | | ??????# # #??????????????? | | ??????# # #??????????????? | | ??????# # #??????????????? | | ??????########## #??????????????? | | ???????????????# #??????????????? | | ???????????????? ??????????????? | | ???????????????? ??????????????? | | ???????????????? ??????????????? | | ???????????????? < ?????????????? | | ???????????????? ?????????????? | | ???????????????? ?????????????? | | ???????????????? ???????????????? | | ??????????????????????????????????? | | ??????????????????????????????????? | | ??????????????????????????????????? | | ??????????????????????????????????? | | ??????????????????????????????????? | | ??????????????????????????????????? | | ??????????????????????????????????? | +----------------------------------------------------+ Best States ------------- Heat Dissipation 25 Energy Generation 10 Energy Capacity 1625 Matter Stores 500 Matter Capacity 500 Sight Range 16 Robot Scan Range 20 Terrain Scan Density 10 Resistance: EX 20 Evasion (%) 63 Offensive Hacking 15 Defensive Hacking 10 Item Schematics ----------------- None Robot Schematics ------------------ None Fabricated ------------ Nothing Alien Tech Used ----------------- None Achievements -------------- None Challenges ------------ None RPGLIKE | -11 -10 -10 -9 -9 -9 -8 -8 -7 --------- Run | Scr Mat Min Mat Min Exi Min Mat Fac Levels Raised 8 | . . 1 2 1 . . 3 1 XP Earned 15693 | 3000 1288 1105 3086 954 350 500 3369 2041 XP Spent 8905 | 2725 250 . . . . . 2675 3255 Upgrades 37 | 13 1 . . . . . 14 9 Propulsion Slot 1 | 1 . . . . . . . . Weapon Slot 1 | 1 . . . . . . . . Core Integrity 8 | . . . . . . . 5 3 Matter Storage 4 | . . . . . . . 4 . Mass Support 3 | 1 . . . . . . 1 1 Inventory Capacity 1 | . 1 . . . . . . . Sensor Range 10 | 10 . . . . . . . . Hack Attack % 3 | . . . . . . . . 3 Hack Defense % 2 | . . . . . . . . 2 EX Resistance % 4 | . . . . . . . 4 . Protomatter Created 169 | . 68 8 57 . . . 17 19 Integrity Restored 284 | . 107 54 66 . . . . 57 Core 262 | . 85 54 66 . . . . 57 Parts 22 | . 22 . . . . . . . Protomatter Decayed 51 | . . 51 . . . . . . Game ------ Seed ArmageddonAssemblyPlating Manual? 0 Play Time 00:26:56 Cumulative 228.8 hours Start 2022.06.10 @ 12:43:14 End 2022.06.10 @ 13:10:50 Sessions 1 Manual Loads 0 Difficulty Rogue Special Mode Winter2019/RPGLIKE Game No. 287 Rogue 287 Adventurer 0 Explorer 0 Win Type - Total 11 Types 8/0/2/1/0/0/0/0/0 Lore% 67 Gallery% 84 Achievement% 73 Wizard Run 0 Options --------- ASCII 0 Keyboard 0 Movement Numpad Keybinds 0 Fullscreen 1 Font 18/Terminus Map View 76x50 Tactical HUD 1 Map Filters NONE Filters NONE Steam 1 RUN: fb53af09-dde1-4672-95bf-1e0561d442fa